[Event "Live Chess"]
[Site "Chess.com"]
[Date "2023.05.21"]
[Round "-"]
[White "manthanit"]
[Black "chessleanstrategist"]
[Result "1/2-1/2"]
[WhiteElo "1088"]
[BlackElo "463"]
[TimeControl "300"]
[EndTime "3:52:21 PDT"]
[Termination "Game drawn - timeout vs insufficient material"]

1. e4 {[%clk 0:04:59.3]} 1... d6 {[%clk 0:04:58.5]} 2. d4 {[%clk 0:04:58.2]}
2... Nf6 {[%clk 0:04:56.6]} 3. Nc3 {[%clk 0:04:56.8]} 3... e5 {[%clk 0:04:48.2]}
4. dxe5 {[%clk 0:04:55]} 4... dxe5 {[%clk 0:04:46.9]} 5. Qxd8+ {[%clk
0:04:54.4]} 5... Kxd8 {[%clk 0:04:46.3]} 6. h3 {[%clk 0:04:54]} 6... Nc6 {[%clk
0:04:40.2]} 7. Nf3 {[%clk 0:04:53.2]} 7... b6 {[%clk 0:04:38.1]} 8. Bb5 {[%clk
0:04:52.2]} 8... Bb7 {[%clk 0:04:32.9]} 9. Bg5 {[%clk 0:04:49.5]} 9... Be7
{[%clk 0:04:24.9]} 10. O-O-O+ {[%clk 0:04:48.1]} 10... Kc8 {[%clk 0:04:17.4]}
11. Rhe1 {[%clk 0:04:42.9]} 11... Kb8 {[%clk 0:04:15.3]} 12. Bxf6 {[%clk
0:04:35.2]} 12... Bxf6 {[%clk 0:04:13.4]} 13. Nd2 {[%clk 0:04:32.5]} 13... a6
{[%clk 0:04:09.8]} 14. Be2 {[%clk 0:04:28.2]} 14... a5 {[%clk 0:03:58.4]} 15.
Nd5 {[%clk 0:04:25.6]} 15... Nd4 {[%clk 0:03:50.2]} 16. Nf3 {[%clk 0:04:14.5]}
16... Nxe2+ {[%clk 0:03:44.9]} 17. Rxe2 {[%clk 0:04:12.1]} 17... Rd8 {[%clk
0:03:36.2]} 18. Nxf6 {[%clk 0:04:06.7]} 18... gxf6 {[%clk 0:03:34.7]} 19. Red2
{[%clk 0:04:05.5]} 19... Rxd2 {[%clk 0:03:30.3]} 20. Rxd2 {[%clk 0:04:04.5]}
20... Ka7 {[%clk 0:03:30]} 21. Re2 {[%clk 0:03:56.9]} 21... c5 {[%clk
0:03:23.1]} 22. Re3 {[%clk 0:03:52.5]} 22... Rd8 {[%clk 0:03:10.4]} 23. Nd2
{[%clk 0:03:50.5]} 23... b5 {[%clk 0:03:04.3]} 24. c3 {[%clk 0:03:48.4]} 24...
c4 {[%clk 0:02:49]} 25. b3 {[%clk 0:03:37.6]} 25... Rd3 {[%clk 0:02:45.9]} 26.
Rxd3 {[%clk 0:03:26.9]} 26... cxd3 {[%clk 0:02:44.7]} 27. f3 {[%clk 0:03:20.8]}
27... Kb6 {[%clk 0:02:37.6]} 28. Nb1 {[%clk 0:03:19.8]} 28... b4 {[%clk
0:02:19.3]} 29. c4 {[%clk 0:03:18.4]} 29... Kc5 {[%clk 0:02:16.7]} 30. Kd2
{[%clk 0:03:17.5]} 30... Bc6 {[%clk 0:02:08.2]} 31. Ke3 {[%clk 0:03:15.8]} 31...
f5 {[%clk 0:02:01.9]} 32. Kxd3 {[%clk 0:03:12.4]} 32... fxe4+ {[%clk 0:01:58.5]}
33. fxe4 {[%clk 0:03:11.6]} 33... f6 {[%clk 0:01:54.5]} 34. Nd2 {[%clk
0:03:10.1]} 34... h5 {[%clk 0:01:48.4]} 35. Nf3 {[%clk 0:03:06.2]} 35... Bd7
{[%clk 0:01:40.9]} 36. Nh2 {[%clk 0:02:50.2]} 36... f5 {[%clk 0:01:36.6]} 37.
exf5 {[%clk 0:02:45.9]} 37... Bxf5+ {[%clk 0:01:35.6]} 38. Ke3 {[%clk
0:02:44.8]} 38... Bb1 {[%clk 0:01:12.7]} 39. g4 {[%clk 0:02:41.1]} 39... hxg4
{[%clk 0:01:10.3]} 40. hxg4 {[%clk 0:02:40.3]} 40... Bxa2 {[%clk 0:01:08]} 41.
Ke4 {[%clk 0:02:39.3]} 41... Kd6 {[%clk 0:01:05.4]} 42. Nf3 {[%clk 0:02:37.6]}
42... Bxb3 {[%clk 0:01:02.4]} 43. Nxe5 {[%clk 0:02:37]} 43... a4 {[%clk
0:00:58.7]} 44. g5 {[%clk 0:02:34]} 44... a3 {[%clk 0:00:54.1]} 45. g6 {[%clk
0:02:33.1]} 45... a2 {[%clk 0:00:37.7]} 46. g7 {[%clk 0:02:32.1]} 46... a1=Q
{[%clk 0:00:36.6]} 47. g8=Q {[%clk 0:02:30.7]} 47... Qe1+ {[%clk 0:00:30.6]} 48.
Kd3 {[%clk 0:02:19.1]} 48... Qxe5 {[%clk 0:00:22.7]} 49. Qd8+ {[%clk 0:02:15.8]}
49... Ke6 {[%clk 0:00:19.2]} 50. Qe8+ {[%clk 0:02:14.8]} 50... Kf5 {[%clk
0:00:18.4]} 51. Qh5+ {[%clk 0:02:07.9]} 51... Ke6 {[%clk 0:00:16.7]} 52. Qe8+
{[%clk 0:02:00.1]} 52... Kf5 {[%clk 0:00:11.6]} 53. Qxe5+ {[%clk 0:01:51]} 53...
Kxe5 {[%clk 0:00:10.5]} 54. c5 {[%clk 0:01:38.2]} 54... Kd5 {[%clk 0:00:09.5]}
55. c6 {[%clk 0:01:37.2]} 55... Kxc6 {[%clk 0:00:08.7]} 56. Kd4 {[%clk
0:01:35.5]} 1/2-1/2

[Event "Live Chess"]
[Site "Chess.com"]
[Date "2023.05.21"]
[Round "-"]
[White "enoughtell"]
[Black "TheSmoulderingMaster"]
[Result "1-0"]
[WhiteElo "1122"]
[BlackElo "1653"]
[TimeControl "300"]
[EndTime "3:52:27 PDT"]
[Termination "enoughtell won by resignation"]

1. e4 {[%clk 0:04:57.9]} 1... c5 {[%clk 0:04:58.7]} 2. Nf3 {[%clk 0:04:57.1]}
2... d6 {[%clk 0:04:58.1]} 3. Bc4 {[%clk 0:04:56]} 3... e6 {[%clk 0:04:56.7]} 4.
c3 {[%clk 0:04:54.7]} 4... Nc6 {[%clk 0:04:56]} 5. O-O {[%clk 0:04:53.3]} 5...
Nf6 {[%clk 0:04:55.3]} 6. Re1 {[%clk 0:04:52]} 6... Be7 {[%clk 0:04:54.4]} 7. h3
{[%clk 0:04:49.1]} 7... O-O {[%clk 0:04:53.5]} 8. d4 {[%clk 0:04:46.3]} 8...
cxd4 {[%clk 0:04:51.6]} 9. cxd4 {[%clk 0:04:45.6]} 9... Bd7 {[%clk 0:04:49]} 10.
a3 {[%clk 0:04:41.9]} 10... Rc8 {[%clk 0:04:47.3]} 11. Nc3 {[%clk 0:04:36.7]}
11... Qa5 {[%clk 0:04:43.8]} 12. Bd2 {[%clk 0:04:28.1]} 12... Nxd4 {[%clk
0:04:37.8]} 13. Nxd4 {[%clk 0:04:22.2]} 13... Rxc4 {[%clk 0:04:35.7]} 14. Nd5
{[%clk 0:04:13.8]} 14... Qd8 {[%clk 0:04:29.5]} 15. Nxe7+ {[%clk 0:04:09.3]}
15... Qxe7 {[%clk 0:04:28.3]} 16. Bc3 {[%clk 0:04:01.7]} 16... e5 {[%clk
0:04:27.2]} 17. Nf5 {[%clk 0:03:55.9]} 17... Bxf5 {[%clk 0:04:25.2]} 18. exf5
{[%clk 0:03:54.6]} 18... Rfc8 {[%clk 0:04:18.8]} 19. Qf3 {[%clk 0:03:36.2]}
19... Rf4 {[%clk 0:04:13.8]} 20. Qd3 {[%clk 0:03:25.2]} 20... Qd7 {[%clk
0:04:10.9]} 21. Rad1 {[%clk 0:03:14.1]} 21... Rxf5 {[%clk 0:04:08.9]} 22. Bxe5
{[%clk 0:03:06.5]} 22... Re8 {[%clk 0:03:43.2]} 23. Bxf6 {[%clk 0:02:57.4]}
23... Rxf6 {[%clk 0:03:41.9]} 24. Qc3 {[%clk 0:02:34.9]} 24... Rxe1+ {[%clk
0:03:37.7]} 25. Rxe1 {[%clk 0:02:33.6]} 25... h6 {[%clk 0:03:31.9]} 26. f3
{[%clk 0:02:22.2]} 26... Qf5 {[%clk 0:03:25]} 27. Re7 {[%clk 0:02:06.6]} 27...
Rg6 {[%clk 0:03:20.1]} 28. Rxb7 {[%clk 0:01:54.4]} 28... Qxh3 {[%clk 0:03:15]}
29. Qc2 {[%clk 0:01:35.6]} 29... Qxf3 {[%clk 0:03:06.1]} 30. Rb8+ {[%clk
0:01:27.9]} 30... Kh7 {[%clk 0:02:57.3]} 31. Qxg6+ {[%clk 0:01:24.6]} 31... fxg6
{[%clk 0:02:54]} 32. gxf3 {[%clk 0:01:23.8]} 32... g5 {[%clk 0:02:53.5]} 33. Rb7
{[%clk 0:01:21.9]} 33... Kg6 {[%clk 0:02:52.9]} 34. Rxa7 {[%clk 0:01:21.1]}
34... Kf5 {[%clk 0:02:51.6]} 35. Rd7 {[%clk 0:01:18]} 35... Ke6 {[%clk 0:02:50]}
36. Rxg7 {[%clk 0:01:16]} 1-0

[Event "Live Chess"]
[Site "Chess.com"]
[Date "2023.05.21"]
[Round "-"]
[White "CeladonFish"]
[Black "Vitalii18a"]
[Result "0-1"]
[WhiteElo "1082"]
[BlackElo "1130"]
[TimeControl "300"]
[EndTime "3:52:38 PDT"]
[Termination "Vitalii18a won by resignation"]

1. d4 {[%clk 0:04:58.7]} 1... d5 {[%clk 0:04:58.5]} 2. c4 {[%clk 0:04:52.5]}
2... e6 {[%clk 0:04:56.6]} 3. Nc3 {[%clk 0:04:51.2]} 3... Bb4 {[%clk 0:04:54.8]}
4. Bf4 {[%clk 0:04:46.7]} 4... dxc4 {[%clk 0:04:53]} 5. e3 {[%clk 0:04:45.1]}
5... b5 {[%clk 0:04:51.2]} 6. a4 {[%clk 0:04:41.7]} 6... Bd7 {[%clk 0:04:21]} 7.
b3 {[%clk 0:04:24.4]} 7... Bxc3+ {[%clk 0:04:10.9]} 8. Ke2 {[%clk 0:04:18.7]}
8... Bxa1 {[%clk 0:04:09.2]} 9. Qxa1 {[%clk 0:04:18.5]} 9... cxb3 {[%clk
0:04:03.9]} 10. axb5 {[%clk 0:04:15.7]} 10... Bxb5+ {[%clk 0:04:02.5]} 11. Ke1
{[%clk 0:04:13.6]} 11... Bxf1 {[%clk 0:04:00.9]} 12. Kxf1 {[%clk 0:04:12.4]}
12... Qd5 {[%clk 0:03:56.6]} 13. Ne2 {[%clk 0:04:06.2]} 13... a5 {[%clk
0:03:55.1]} 14. Nc3 {[%clk 0:04:04.8]} 14... Qc4+ {[%clk 0:03:53.4]} 15. Ne2
{[%clk 0:04:01.7]} 15... a4 {[%clk 0:03:51.3]} 16. d5 {[%clk 0:03:51.9]} 16...
exd5 {[%clk 0:03:44.1]} 17. Qxg7 {[%clk 0:03:48.3]} 17... a3 {[%clk 0:03:14.3]}
18. Qxh8 {[%clk 0:03:47.1]} 18... Kd7 {[%clk 0:03:01]} 19. Qxg8 {[%clk
0:03:40.4]} 19... a2 {[%clk 0:02:40.8]} 20. Qxf7+ {[%clk 0:03:29.5]} 20... Kc6
{[%clk 0:02:35.8]} 21. Qe6+ {[%clk 0:03:25.6]} 21... Kb7 {[%clk 0:02:30.2]} 0-1

[Event "Live Chess"]
[Site "Chess.com"]
[Date "2023.05.21"]
[Round "-"]
[White "SmoothBaron"]
[Black "bonniebundle"]
[Result "1-0"]
[WhiteElo "2358"]
[BlackElo "457"]
[TimeControl "300"]
[EndTime "3:52:51 PDT"]
[Termination "SmoothBaron won by resignation"]

1. e4 {[%clk 0:04:54.6]} 1... e5 {[%clk 0:04:58.1]} 2. Nc3 {[%clk 0:04:48.4]}
2... Nc6 {[%clk 0:04:49.8]} 3. Bc4 {[%clk 0:04:46.8]} 3... Nh6 {[%clk
0:04:46.5]} 4. d3 {[%clk 0:04:43.9]} 4... b6 {[%clk 0:04:40.7]} 5. Bxh6 {[%clk
0:04:40.5]} 5... gxh6 {[%clk 0:04:36.6]} 6. Qh5 {[%clk 0:04:38.4]} 6... Qe7
{[%clk 0:04:28]} 7. Nd5 {[%clk 0:04:36]} 7... Qe6 {[%clk 0:04:19.5]} 8. Nxc7+
{[%clk 0:04:34]} 8... Ke7 {[%clk 0:04:01]} 9. Bxe6 {[%clk 0:04:31]} 9... dxe6
{[%clk 0:03:57.4]} 10. Nxa8 {[%clk 0:04:29.6]} 10... Bb7 {[%clk 0:03:55.6]} 11.
Nc7 {[%clk 0:04:26.7]} 11... Kd7 {[%clk 0:03:55]} 12. Nb5 {[%clk 0:04:25.1]}
12... Ba6 {[%clk 0:03:52.4]} 13. Nc3 {[%clk 0:04:21.6]} 13... Rg8 {[%clk
0:03:46.8]} 14. Qxf7+ {[%clk 0:04:20.2]} 14... Ne7 {[%clk 0:03:43.7]} 15. g3
{[%clk 0:04:14.3]} 15... Rg7 {[%clk 0:03:42]} 16. Qf3 {[%clk 0:04:12]} 16... b5
{[%clk 0:03:32.6]} 17. O-O-O {[%clk 0:04:08.8]} 17... b4 {[%clk 0:03:24.2]} 18.
Na4 {[%clk 0:04:06]} 1-0

[Event "Live Chess"]
[Site "Chess.com"]
[Date "2023.05.21"]
[Round "-"]
[White "HoarseyHorsey"]
[Black "chrisbradgate"]
[Result "1-0"]
[WhiteElo "1462"]
[BlackElo "873"]
[TimeControl "300"]
[EndTime "3:52:52 PDT"]
[Termination "HoarseyHorsey won by checkmate"]

1. d4 {[%clk 0:04:59.4]} 1... d5 {[%clk 0:04:58.3]} 2. c4 {[%clk 0:04:58.3]}
2... dxc4 {[%clk 0:04:56.6]} 3. e4 {[%clk 0:04:57.4]} 3... e6 {[%clk 0:04:54]}
4. Bxc4 {[%clk 0:04:56.4]} 4... Bb4+ {[%clk 0:04:51.8]} 5. Nc3 {[%clk 0:04:55]}
5... Bxc3+ {[%clk 0:04:48.5]} 6. bxc3 {[%clk 0:04:54.9]} 6... Nc6 {[%clk
0:04:46.3]} 7. Nf3 {[%clk 0:04:53.2]} 7... h6 {[%clk 0:04:43]} 8. O-O {[%clk
0:04:51.5]} 8... Bd7 {[%clk 0:04:42.1]} 9. d5 {[%clk 0:04:39.5]} 9... exd5
{[%clk 0:04:40.2]} 10. exd5 {[%clk 0:04:38.7]} 10... Nce7 {[%clk 0:04:38.9]} 11.
d6 {[%clk 0:04:29.1]} 11... cxd6 {[%clk 0:04:36.8]} 12. Qxd6 {[%clk 0:04:27.1]}
12... Nf6 {[%clk 0:04:28.2]} 13. Re1 {[%clk 0:04:18.7]} 13... O-O {[%clk
0:04:26.6]} 14. Rxe7 {[%clk 0:04:12.9]} 14... Bg4 {[%clk 0:04:24.8]} 15. Qxd8
{[%clk 0:04:09.2]} 15... Raxd8 {[%clk 0:04:23.5]} 16. Be3 {[%clk 0:03:59.7]}
16... Bxf3 {[%clk 0:04:21.3]} 17. gxf3 {[%clk 0:03:58.4]} 17... Rb8 {[%clk
0:03:53.8]} 18. Rb1 {[%clk 0:03:46.3]} 18... Rfd8 {[%clk 0:03:46.6]} 19. Rxf7
{[%clk 0:03:38.5]} 19... Kh7 {[%clk 0:03:41.1]} 20. Rbxb7 {[%clk 0:03:26.3]}
20... Rbc8 {[%clk 0:03:38.6]} 21. Bb3 {[%clk 0:03:22.8]} 21... Rxc3 {[%clk
0:03:32]} 22. Rxg7+ {[%clk 0:03:21.7]} 22... Kh8 {[%clk 0:03:23.6]} 23. Rxa7
{[%clk 0:03:14.6]} 23... Rxe3 {[%clk 0:03:03.6]} 24. fxe3 {[%clk 0:03:09.1]}
24... Re8 {[%clk 0:02:52.3]} 25. e4 {[%clk 0:03:02.6]} 25... Rc8 {[%clk
0:02:39.1]} 26. Kg2 {[%clk 0:02:50.9]} 26... Nh5 {[%clk 0:02:10.4]} 27. Rh7#
{[%clk 0:02:46.4]} 1-0

[Event "Live Chess"]
[Site "Chess.com"]
[Date "2023.05.21"]
[Round "-"]
[White "JoshMcK"]
[Black "GMMickeyAdams"]
[Result "0-1"]
[WhiteElo "1512"]
[BlackElo "2794"]
[TimeControl "300"]
[EndTime "3:52:56 PDT"]
[Termination "GMMickeyAdams won by resignation"]

1. e4 {[%clk 0:04:59.2]} 1... e6 {[%clk 0:04:57.1]} 2. d4 {[%clk 0:04:57.6]}
2... d5 {[%clk 0:04:56.5]} 3. Nc3 {[%clk 0:04:55]} 3... Bb4 {[%clk 0:04:54.2]}
4. e5 {[%clk 0:04:53.5]} 4... Ne7 {[%clk 0:04:53]} 5. a3 {[%clk 0:04:51.6]} 5...
Bxc3+ {[%clk 0:04:51.3]} 6. bxc3 {[%clk 0:04:50.8]} 6... c5 {[%clk 0:04:48.3]}
7. Qg4 {[%clk 0:04:49]} 7... Kf8 {[%clk 0:04:46.3]} 8. h4 {[%clk 0:04:46.7]}
8... Qa5 {[%clk 0:04:42.5]} 9. Bd2 {[%clk 0:04:44.2]} 9... Qa4 {[%clk
0:04:41.4]} 10. Qd1 {[%clk 0:04:16.5]} 10... b6 {[%clk 0:04:39.3]} 11. h5 {[%clk
0:04:12.9]} 11... h6 {[%clk 0:04:37.4]} 12. Nf3 {[%clk 0:04:10.9]} 12... Nbc6
{[%clk 0:04:33.6]} 13. Be2 {[%clk 0:04:05.9]} 13... Ba6 {[%clk 0:04:28.8]} 14.
Bxa6 {[%clk 0:03:57.2]} 14... Qxa6 {[%clk 0:04:27]} 15. dxc5 {[%clk 0:03:55.2]}
15... bxc5 {[%clk 0:04:24.1]} 16. Qe2 {[%clk 0:03:50.3]} 16... Qxe2+ {[%clk
0:04:19.3]} 17. Kxe2 {[%clk 0:03:50.2]} 17... Ke8 {[%clk 0:03:34.8]} 18. Be3
{[%clk 0:03:29.3]} 18... Kd7 {[%clk 0:03:12.7]} 19. Bxc5 {[%clk 0:03:24.5]}
19... Rhb8 {[%clk 0:03:12.1]} 20. Rab1 {[%clk 0:03:13.6]} 20... Na5 {[%clk
0:03:03.3]} 21. Rxb8 {[%clk 0:03:01.7]} 21... Rxb8 {[%clk 0:03:01.6]} 22. Bxa7
{[%clk 0:02:57.5]} 22... Ra8 {[%clk 0:02:58.9]} 23. Bc5 {[%clk 0:02:52.6]} 23...
Nec6 {[%clk 0:02:58.3]} 24. Bb4 {[%clk 0:02:48.7]} 24... Nc4 {[%clk 0:02:56.6]}
25. Ra1 {[%clk 0:02:41.6]} 25... N6xe5 {[%clk 0:02:52.2]} 26. Nxe5+ {[%clk
0:02:37.8]} 26... Nxe5 {[%clk 0:02:51]} 27. f3 {[%clk 0:02:35.4]} 27... Nc4
{[%clk 0:02:49.7]} 28. g4 {[%clk 0:02:19.2]} 28... e5 {[%clk 0:02:44.4]} 29. Kd3
{[%clk 0:02:08.9]} 29... Ra4 {[%clk 0:02:40.1]} 30. Ke2 {[%clk 0:01:52.1]} 30...
Ke6 {[%clk 0:02:35.9]} 31. Ra2 {[%clk 0:01:44.7]} 31... Kf6 {[%clk 0:02:31.9]}
32. Kf2 {[%clk 0:01:29.2]} 32... g6 {[%clk 0:02:29.5]} 33. hxg6 {[%clk
0:01:26.7]} 33... fxg6 {[%clk 0:02:28.2]} 34. Ra1 {[%clk 0:01:15.8]} 34... h5
{[%clk 0:02:14.9]} 35. gxh5 {[%clk 0:01:10.6]} 35... gxh5 {[%clk 0:02:13.9]} 36.
Rd1 {[%clk 0:01:07.4]} 36... Ke6 {[%clk 0:02:11.4]} 37. Rh1 {[%clk 0:01:03.4]}
37... Ra8 {[%clk 0:02:05.8]} 38. Rxh5 {[%clk 0:01:00.6]} 38... Nxa3 {[%clk
0:02:04.3]} 39. Rh6+ {[%clk 0:00:54.1]} 39... Kf5 {[%clk 0:02:02.1]} 40. Bxa3
{[%clk 0:00:50.4]} 40... Rxa3 {[%clk 0:01:59.9]} 41. Rh5+ {[%clk 0:00:45.5]}
41... Ke6 {[%clk 0:01:55.8]} 42. Rh2 {[%clk 0:00:37.8]} 42... Rxc3 {[%clk
0:01:53.7]} 43. Kg3 {[%clk 0:00:37]} 43... e4 {[%clk 0:01:49.6]} 44. Re2 {[%clk
0:00:34]} 44... Rxf3+ {[%clk 0:01:47.3]} 45. Kg4 {[%clk 0:00:31]} 45... Ke5
{[%clk 0:01:46.1]} 46. Re1 {[%clk 0:00:22.7]} 46... d4 {[%clk 0:01:44.2]} 47.
Re2 {[%clk 0:00:19.3]} 47... Rf8 {[%clk 0:01:41.7]} 48. Kg3 {[%clk 0:00:17]}
48... e3 {[%clk 0:01:40.2]} 49. Kg2 {[%clk 0:00:15.4]} 49... Ke4 {[%clk
0:01:38.8]} 50. Kg3 {[%clk 0:00:14.2]} 50... Rg8+ {[%clk 0:01:37.1]} 51. Kh2
{[%clk 0:00:12.8]} 51... Kf3 {[%clk 0:01:36.5]} 52. Re1 {[%clk 0:00:11.7]} 52...
Kf2 {[%clk 0:01:35.6]} 0-1

[Event "Live Chess"]
[Site "Chess.com"]
[Date "2023.05.21"]
[Round "-"]
[White "Missedidea"]
[Black "domrobson"]
[Result "1-0"]
[WhiteElo "1842"]
[BlackElo "1693"]
[TimeControl "300"]
[EndTime "3:53:07 PDT"]
[Termination "Missedidea won by resignation"]

1. d4 {[%clk 0:04:59]} 1... Nf6 {[%clk 0:04:57.1]} 2. c4 {[%clk 0:04:57.7]} 2...
e6 {[%clk 0:04:55.3]} 3. Nc3 {[%clk 0:04:56.6]} 3... d5 {[%clk 0:04:54.8]} 4.
Bg5 {[%clk 0:04:54.1]} 4... c6 {[%clk 0:04:54.2]} 5. e3 {[%clk 0:04:53.1]} 5...
Nbd7 {[%clk 0:04:52.5]} 6. Nf3 {[%clk 0:04:51.8]} 6... Qa5 {[%clk 0:04:52.1]} 7.
Nd2 {[%clk 0:04:49.2]} 7... dxc4 {[%clk 0:04:49.7]} 8. Bxf6 {[%clk 0:04:47.7]}
8... Nxf6 {[%clk 0:04:48.4]} 9. Nxc4 {[%clk 0:04:46.6]} 9... Qd8 {[%clk
0:04:48.1]} 10. Be2 {[%clk 0:04:40.2]} 10... Nd5 {[%clk 0:04:47.3]} 11. O-O
{[%clk 0:04:36.2]} 11... Nxc3 {[%clk 0:04:44.3]} 12. bxc3 {[%clk 0:04:34.2]}
12... Bd6 {[%clk 0:04:43.4]} 13. e4 {[%clk 0:04:30.7]} 13... e5 {[%clk
0:04:41.5]} 14. dxe5 {[%clk 0:04:20.2]} 14... Bc7 {[%clk 0:04:40.1]} 15. f4
{[%clk 0:04:16.4]} 15... Be6 {[%clk 0:04:37.6]} 16. Ne3 {[%clk 0:04:12]} 16...
g6 {[%clk 0:04:34.1]} 17. f5 {[%clk 0:04:03.8]} 17... Bb6 {[%clk 0:04:29.8]} 18.
Qc1 {[%clk 0:03:50.2]} 18... gxf5 {[%clk 0:04:22.8]} 19. exf5 {[%clk 0:03:47.8]}
19... Bd5 {[%clk 0:04:21.7]} 20. Kh1 {[%clk 0:03:40.4]} 20... Be4 {[%clk
0:04:11.9]} 21. Bf3 {[%clk 0:03:26.6]} 21... Bxf3 {[%clk 0:03:59]} 22. Rxf3
{[%clk 0:03:24.2]} 22... Qg5 {[%clk 0:03:57.4]} 23. Qd2 {[%clk 0:03:05.6]} 23...
Rg8 {[%clk 0:03:53.5]} 24. Rg3 {[%clk 0:02:52.3]} 1-0

[Event "Live Chess"]
[Site "Chess.com"]
[Date "2023.05.21"]
[Round "-"]
[White "JoeRoot66"]
[Black "KeithArkell"]
[Result "0-1"]
[WhiteElo "1917"]
[BlackElo "2501"]
[TimeControl "300"]
[EndTime "3:53:08 PDT"]
[Termination "KeithArkell won by resignation"]

1. e4 {[%clk 0:04:59.3]} 1... c6 {[%clk 0:04:59]} 2. Nf3 {[%clk 0:04:53.5]} 2...
d5 {[%clk 0:04:58]} 3. Nc3 {[%clk 0:04:53]} 3... Bg4 {[%clk 0:04:56.7]} 4. h3
{[%clk 0:04:51.7]} 4... Bxf3 {[%clk 0:04:55.9]} 5. Qxf3 {[%clk 0:04:51.6]} 5...
dxe4 {[%clk 0:04:55.3]} 6. Nxe4 {[%clk 0:04:50.8]} 6... Nd7 {[%clk 0:04:54.5]}
7. d4 {[%clk 0:04:48]} 7... Ndf6 {[%clk 0:04:53.5]} 8. c3 {[%clk 0:04:44.8]}
8... Nxe4 {[%clk 0:04:52.6]} 9. Qxe4 {[%clk 0:04:44.7]} 9... Nf6 {[%clk
0:04:52]} 10. Qf3 {[%clk 0:04:44.3]} 10... e6 {[%clk 0:04:50.9]} 11. Bg5 {[%clk
0:04:39.3]} 11... Be7 {[%clk 0:04:50]} 12. Bd3 {[%clk 0:04:38.1]} 12... Qd5
{[%clk 0:04:49]} 13. Qxd5 {[%clk 0:04:27.2]} 13... Nxd5 {[%clk 0:04:47.7]} 14.
Bxe7 {[%clk 0:04:26.6]} 14... Kxe7 {[%clk 0:04:47.2]} 15. g3 {[%clk 0:04:23.9]}
15... Rhd8 {[%clk 0:04:46]} 16. f3 {[%clk 0:04:15.2]} 16... h6 {[%clk
0:04:44.3]} 17. Kf2 {[%clk 0:04:09]} 17... Nf6 {[%clk 0:04:42.8]} 18. b4 {[%clk
0:04:04.5]} 18... a5 {[%clk 0:04:41.5]} 19. a3 {[%clk 0:04:02.9]} 19... g5
{[%clk 0:04:40]} 20. g4 {[%clk 0:03:46.7]} 20... Nd5 {[%clk 0:04:23.5]} 21. Rac1
{[%clk 0:02:59.8]} 21... axb4 {[%clk 0:04:21.3]} 22. axb4 {[%clk 0:02:59.1]}
22... Ra2+ {[%clk 0:04:16.5]} 23. Be2 {[%clk 0:02:42.6]} 23... Nf4 {[%clk
0:04:14.6]} 24. Rhe1 {[%clk 0:02:41.4]} 24... Nd3+ {[%clk 0:04:13.5]} 25. Ke3
{[%clk 0:02:38.1]} 25... Nxc1 {[%clk 0:04:11.5]} 26. Rxc1 {[%clk 0:02:38]} 26...
Rda8 {[%clk 0:04:10]} 27. b5 {[%clk 0:02:27.9]} 27... Ra1 {[%clk 0:04:08.3]} 28.
Rxa1 {[%clk 0:02:20.9]} 28... Rxa1 {[%clk 0:04:06.2]} 29. bxc6 {[%clk
0:02:20.8]} 29... bxc6 {[%clk 0:04:04.5]} 30. f4 {[%clk 0:02:20.4]} 30... Rc1
{[%clk 0:03:58.5]} 31. fxg5 {[%clk 0:02:17.1]} 31... hxg5 {[%clk 0:03:56.7]} 32.
Kd3 {[%clk 0:02:15.5]} 32... Rh1 {[%clk 0:03:54.1]} 33. Bf3 {[%clk 0:02:09.7]}
33... Rxh3 {[%clk 0:03:52.7]} 34. Ke2 {[%clk 0:02:09.6]} 34... Kd6 {[%clk
0:03:49.5]} 0-1

[Event "Live Chess"]
[Site "Chess.com"]
[Date "2023.05.21"]
[Round "-"]
[White "Crowded_House"]
[Black "McSlash1"]
[Result "0-1"]
[WhiteElo "1636"]
[BlackElo "2019"]
[TimeControl "300"]
[EndTime "3:53:10 PDT"]
[Termination "McSlash1 won by checkmate"]

1. d4 {[%clk 0:04:55.9]} 1... Nf6 {[%clk 0:04:58.8]} 2. Bg5 {[%clk 0:04:54.4]}
2... g6 {[%clk 0:04:58.4]} 3. e3 {[%clk 0:04:52.9]} 3... Ne4 {[%clk 0:04:57.2]}
4. Bh4 {[%clk 0:04:50.9]} 4... Bg7 {[%clk 0:04:56.6]} 5. c3 {[%clk 0:04:49]}
5... d5 {[%clk 0:04:55]} 6. Nd2 {[%clk 0:04:48.3]} 6... Nxd2 {[%clk 0:04:53.2]}
7. Qxd2 {[%clk 0:04:46.1]} 7... O-O {[%clk 0:04:53.1]} 8. Nf3 {[%clk 0:04:44.2]}
8... c5 {[%clk 0:04:52.2]} 9. dxc5 {[%clk 0:04:39.8]} 9... Qc7 {[%clk
0:04:48.7]} 10. Be2 {[%clk 0:04:31.8]} 10... Qxc5 {[%clk 0:04:46.1]} 11. O-O
{[%clk 0:04:28.5]} 11... Nc6 {[%clk 0:04:44.1]} 12. Nd4 {[%clk 0:04:12.2]} 12...
Nxd4 {[%clk 0:04:41.9]} 13. exd4 {[%clk 0:04:08.5]} 13... Qd6 {[%clk 0:04:41.1]}
14. Bg3 {[%clk 0:04:07]} 14... Qb6 {[%clk 0:04:35.7]} 15. Qc2 {[%clk 0:03:53.9]}
15... Bf5 {[%clk 0:04:34]} 16. Qb3 {[%clk 0:03:51.5]} 16... Qc6 {[%clk
0:04:23.5]} 17. Qb5 {[%clk 0:03:45.4]} 17... h5 {[%clk 0:03:57.4]} 18. Qxc6
{[%clk 0:03:41.6]} 18... bxc6 {[%clk 0:03:57.3]} 19. b3 {[%clk 0:03:35.4]} 19...
a5 {[%clk 0:03:55.1]} 20. Rac1 {[%clk 0:03:20.8]} 20... a4 {[%clk 0:03:53.4]}
21. b4 {[%clk 0:03:16.2]} 21... Rfe8 {[%clk 0:03:49]} 22. a3 {[%clk 0:03:13.9]}
22... e5 {[%clk 0:03:48]} 23. dxe5 {[%clk 0:03:11.8]} 23... Bxe5 {[%clk
0:03:47.9]} 24. Bxe5 {[%clk 0:03:10.6]} 24... Rxe5 {[%clk 0:03:47.8]} 25. Rfe1
{[%clk 0:03:05.9]} 25... Rae8 {[%clk 0:03:47.1]} 26. Kf1 {[%clk 0:02:56.7]}
26... h4 {[%clk 0:03:41.4]} 27. Bf3 {[%clk 0:02:52.8]} 27... Bd3+ {[%clk
0:03:39.8]} 28. Be2 {[%clk 0:02:46.5]} 28... Rxe2 {[%clk 0:03:34.9]} 29. Rxe2
{[%clk 0:02:40.4]} 29... Rxe2 {[%clk 0:03:34.8]} 30. Kg1 {[%clk 0:02:36.6]}
30... Bc4 {[%clk 0:03:28]} 31. g3 {[%clk 0:02:29.9]} 31... h3 {[%clk 0:03:25.1]}
32. Rb1 {[%clk 0:02:21.1]} 32... Rc2 {[%clk 0:03:21.8]} 33. Re1 {[%clk
0:02:19.9]} 33... Rxc3 {[%clk 0:03:19.2]} 34. Re8+ {[%clk 0:02:19.5]} 34... Kg7
{[%clk 0:03:18.7]} 35. Ra8 {[%clk 0:02:16.7]} 35... Rc1# {[%clk 0:03:17.9]} 0-1